[Event "3rd FIDE WCCC Rapid U08 2019"]
[Site "Minsk"]
[Date "2019.08.17"]
[Round "9.4"]
[White "Belinskiy, Nikita"]
[Black "Usov, Dmitry E."]
[Result "1-0"]
[ECO "A06"]
[WhiteElo "1290"]
[BlackElo "1331"]
[Annotator "NA"]
[PlyCount "135"]
[EventDate "2019.08.16"]
[EventType "swiss"]
[EventCountry "BLR"]
[SourceTitle "playchess.com"]
[Source "ChessBase"]
[SourceQuality "1"]
[TimeControl "600+5"]

1. Nf3 {[%emt 0:00:00]} d5 {[%emt 0:00:00]} 2. g3 {[%emt 0:00:00]} Nf6 {[%emt 0:00:00]} 3. Bg2 {[%emt 0:00:01]} c6 {[%emt 0:00:03]} 4. O-O {[%emt 0:00:04]} Bf5 {[%emt 0:00:02]} 5. d3 {[%emt 0:00:06]} e6 {[%emt 0:00:02]} 6. Nbd2 {[%emt 0:00:02]} Be7 {[%emt 0:00:04]} 7. b3 {[%emt 0:00:03]} Nbd7 {[%emt 0:00:02]} 8. Bb2 {[%emt 0:00:02]} Qc7 {[%emt 0:00:02]} 9. Re1 {[%emt 0:00:06]} O-O {[%emt 0:00:03]} 10. e4 {[%emt 0:00:48]} dxe4 {[%emt 0:00:06]} 11. dxe4 {[%emt 0:00:03]} Bg6 {[%emt 0:00:01]} 12. Nh4 {[%emt 0:01:50]} Bc5 {[%emt 0:01:05]} 13. Nxg6 {[%emt 0:00:57]} fxg6 {[%emt 0:00:07]} 14. Rf1 {[%emt 0:00:36]} Rf7 {[%emt 0:00:11]} 15. Kh1 {[%emt 0:00:39]} Raf8 {[%emt 0:00:11]} 16. f4 {[%emt 0:00:32]} Ne8 {[%emt 0:00:26]} 17. Nf3 {[%emt 0:01:24]} h6 {[%emt 0:00:25]} 18. e5 {[%emt 0:00:17]} Bb6 {[%emt 0:00:40]} 19. Bd4 {[%emt 0:00:26]} c5 {[%emt 0:00:10]} 20. Bb2 {[%emt 0:00:03]} Nb8 {[%emt 0:00:55]} 21. Qd3 {[%emt 0:00:25]} Nc6 {[%emt 0:01:17]} 22. Qxg6 {[%emt 0:00:45]} Re7 {[%emt 0:01:15]} 23. c3 {[%emt 0:00:51]} Qc8 {[%emt 0:00:06]} 24. Qc2 {[%emt 0:00:14]} Nc7 {[%emt 0:01:19]} 25. Nh4 {[%emt 0:00:22]} Ree8 {[%emt 0:00:19]} 26. Rad1 {[%emt 0:00:23]} Rd8 {[%emt 0:00:59]} 27. Ng6 {[%emt 0:00:15]} Rfe8 {[%emt 0:00:07]} 28. Rxd8 {[%emt 0:00:19]} Qxd8 {[%emt 0:00:07]} 29. Rd1 {[%emt 0:00:02]} Qc8 {[%emt 0:00:18]} 30. Nh4 {[%emt 0:00:02]} Rd8 {[%emt 0:00:06]} 31. Rd2 {[%emt 0:00:16]} Rxd2 {[%emt 0:00:16]} 32. Qxd2 {[%emt 0:00:01]} Ne7 {[%emt 0:00:12]} 33. c4 {[%emt 0:00:11]} Nc6 {[%emt 0:00:23]} 34. Bxc6 {[%emt 0:00:04]} bxc6 {[%emt 0:00:02]} 35. Ng6 {[%emt 0:00:11]} Qe8 {[%emt 0:00:22]} 36. Nh4 {[%emt 0:00:01]} Na6 {[%emt 0:00:10]} 37. Bc3 {[%emt 0:00:07]} Qd8 {[%emt 0:00:10]} 38. Qxd8+ {[%emt 0:00:03]} Bxd8 {[%emt 0:00:01]} 39. Nf3 {[%emt 0:00:06]} Nb8 {[%emt 0:00:20]} 40. Nd2 {[%emt 0:00:01]} Nd7 {[%emt 0:00:05]} 41. Ne4 {[%emt 0:00:03]} Bb6 {[%emt 0:00:08]} 42. g4 {[%emt 0:00:07]} Kf7 {[%emt 0:00:07]} 43. Kg2 {[%emt 0:00:02]} Nf8 {[%emt 0:00:19]} 44. Kg3 {[%emt 0:00:04]} Ng6 {[%emt 0:00:03]} 45. h4 {[%emt 0:00:04]} Ne7 {[%emt 0:00:02]} 46. Nd6+ {[%emt 0:00:03]} Kf8 {[%emt 0:00:01]} 47. f5 {[%emt 0:00:14]} exf5 {[%emt 0:00:08]} 48. gxf5 {[%emt 0:00:02]} Bc7 {[%emt 0:00:04]} 49. Kf4 {[%emt 0:00:31]} g6 {[%emt 0:00:16]} 50. f6 {[%emt 0:00:07]} Ng8 {[%emt 0:00:02]} 51. Ne4 {[%emt 0:00:08]} Kf7 {[%emt 0:00:04]} 52. Be1 {[%emt 0:00:08]} Bb8 {[%emt 0:00:12]} 53. Bf2 {[%emt 0:00:01]} Ke6 {[%emt 0:00:08]} 54. Nxc5+ {[%emt 0:00:04]} Kf7 {[%emt 0:00:02]} 55. Ke4 {[%emt 0:00:05]} Bc7 {[%emt 0:00:07]} 56. Nd7 {[%emt 0:00:04]} Ke6 {[%emt 0:00:03]} 57. Nc5+ {[%emt 0:00:05]} Kf7 {[%emt 0:00:02]} 58. Na4 {[%emt 0:00:05]} h5 {[%emt 0:00:07]} 59. Bxa7 {[%emt 0:00:04]} Nh6 {[%emt 0:00:02]} 60. Nc5 {[%emt 0:00:07]} Nf5 {[%emt 0:00:03]} 61. Nd3 {[%emt 0:00:11]} Nxh4 {[%emt 0:00:04]} 62. Bf2 {[%emt 0:00:02]} Nf5 {[%emt 0:00:02]} 63. b4 {[%emt 0:00:03]} Ke6 {[%emt 0:00:07]} 64. a4 {[%emt 0:00:01]} Nh6 {[%emt 0:00:19]} 65. Nf4+ {[%emt 0:00:01]} Kf7 {[%emt 0:00:01]} 66. b5 {[%emt 0:00:01]} cxb5 {[%emt 0:00:08]} 67. axb5 {[%emt 0:00:01]} Ng4 {[%emt 0:00:06]} 68. Bg1 {[%emt 0:00:02]} 1-0

[Event "3rd FIDE WCCC Rapid U08 2019"]
[Site "Minsk"]
[Date "2019.08.17"]
[Round "9.5"]
[White "Samimi, Armin"]
[Black "Velagapudi, Vihan"]
[Result "1-0"]
[ECO "C55"]
[WhiteElo "1478"]
[BlackElo "1337"]
[Annotator "NA"]
[PlyCount "43"]
[EventDate "2019.08.16"]
[EventType "swiss"]
[EventCountry "BLR"]
[SourceTitle "playchess.com"]
[Source "ChessBase"]
[SourceQuality "1"]
[TimeControl "600+5"]

1. e4 {[%emt 0:00:00]} e5 {[%emt 0:00:00]} 2. Nf3 {[%emt 0:00:00]} Nc6 3. Bc4 {[%emt 0:00:00]} Nf6 {[%emt 0:00:00]} 4. d4 {[%emt 0:00:02]} exd4 {[%emt 0:00:07]} 5. e5 {[%emt 0:00:01]} d5 {[%emt 0:00:01]} 6. Bb5 {[%emt 0:00:02]} Ne4 {[%emt 0:00:01]} 7. Nxd4 {[%emt 0:00:03]} Bd7 {[%emt 0:00:03]} 8. Bxc6 {[%emt 0:00:03]} Bxc6 {[%emt 0:00:02]} 9. O-O {[%emt 0:00:04]} Bc5 {[%emt 0:00:03]} 10. f3 {[%emt 0:00:24]} Ng5 {[%emt 0:00:12]} 11. Be3 {[%emt 0:00:02]} Ne6 {[%emt 0:00:13]} 12. f4 {[%emt 0:00:05]} Nxd4 {[%emt 0:00:48]} 13. Bxd4 {[%emt 0:00:01]} Bb6 {[%emt 0:00:17]} 14. f5 {[%emt 0:00:05]} Bb5 {[%emt 0:00:40]} 15. Re1 {[%emt 0:00:19]} c5 {[%emt 0:00:01]} 16. Bf2 {[%emt 0:00:07]} O-O {[%emt 0:01:30]} 17. Nc3 {[%emt 0:00:04]} Bc6 {[%emt 0:00:03]} 18. f6 {[%emt 0:01:06]} Qd7 {[%emt 0:01:41]} 19. Qh5 {[%emt 0:00:46]} Qe6 {[%emt 0:00:56]} 20. Qg5 {[%emt 0:00:12]} g6 {[%emt 0:01:12]} 21. Qh6 {[%emt 0:00:03]} d4 {[%emt 0:00:52]} 22. Qg7# {[%emt 0:00:06]} 1-0

[Event "3rd FIDE WCCC Rapid U08 2019"]
[Site "Minsk"]
[Date "2019.08.17"]
[Round "9.6"]
[White "Preobrazhenskaya, Diana"]
[Black "Nikishin, Igor"]
[Result "1-0"]
[ECO "B34"]
[WhiteElo "1361"]
[BlackElo "1139"]
[Annotator "NA"]
[PlyCount "125"]
[EventDate "2019.08.16"]
[EventType "swiss"]
[EventCountry "BLR"]
[SourceTitle "playchess.com"]
[Source "ChessBase"]
[SourceQuality "1"]
[TimeControl "600+5"]

1. e4 {[%emt 0:00:00]} c5 {[%emt 0:00:00]} 2. Nf3 {[%emt 0:00:08]} Nc6 {[%emt 0:00:00]} 3. d4 {[%emt 0:00:09]} cxd4 {[%emt 0:00:00]} 4. Nxd4 {[%emt 0:00:03]} Nf6 {[%emt 0:00:00]} 5. Nc3 {[%emt 0:00:29]} e5 {[%emt 0:00:02]} 6. Ndb5 {[%emt 0:00:16]} d6 {[%emt 0:00:02]} 7. Nd5 {[%emt 0:00:10]} Nxd5 {[%emt 0:00:04]} 8. exd5 {[%emt 0:00:06]} Nb8 {[%emt 0:00:01]} 9. Bd3 {[%emt 0:00:27]} Be7 {[%emt 0:00:19]} 10. O-O {[%emt 0:00:13]} O-O {[%emt 0:00:09]} 11. f4 {[%emt 0:00:44]} f5 {[%emt 0:00:18]} 12. fxe5 {[%emt 0:00:27]} dxe5 {[%emt 0:00:04]} 13. d6 {[%emt 0:00:11]} Bg5 {[%emt 0:01:25]} 14. Bc4+ {[%emt 0:00:44]} Kh8 {[%emt 0:00:08]} 15. Nc7 {[%emt 0:00:28]} Bxc1 {[%emt 0:00:50]} 16. Rxc1 {[%emt 0:00:18]} Rf6 {[%emt 0:00:13]} 17. Nxa8 {[%emt 0:00:21]} Rxd6 {[%emt 0:00:02]} 18. Qe2 {[%emt 0:00:16]} Nc6 {[%emt 0:00:14]} 19. Rcd1 {[%emt 0:00:27]} Nd4 {[%emt 0:01:48]} 20. Qe3 {[%emt 0:00:59]} Nxc2 {[%emt 0:00:44]} 21. Rxd6 {[%emt 0:00:39]} Qxd6 {[%emt 0:00:05]} 22. Qg5 {[%emt 0:00:38]} Qd4+ {[%emt 0:00:46]} 23. Kh1 {[%emt 0:00:19]} Qxc4 {[%emt 0:00:01]} 24. Qd8+ {[%emt 0:00:12]} Qg8 {[%emt 0:00:01]} 25. Qxg8+ {[%emt 0:00:04]} Kxg8 {[%emt 0:00:01]} 26. Rc1 {[%emt 0:00:05]} Be6 {[%emt 0:00:26]} 27. Rxc2 {[%emt 0:00:02]} Bxa2 {[%emt 0:00:02]} 28. Rc8+ {[%emt 0:00:06]} Kf7 {[%emt 0:00:01]} 29. Rc7+ {[%emt 0:00:01]} Ke6 {[%emt 0:00:01]} 30. Rxg7 {[%emt 0:00:09]} e4 {[%emt 0:00:01]} 31. Kg1 {[%emt 0:00:22]} e3 {[%emt 0:00:11]} 32. Kf1 {[%emt 0:00:06]} Bc4+ {[%emt 0:00:01]} 33. Ke1 {[%emt 0:00:02]} e2 {[%emt 0:00:02]} 34. Rxb7 {[%emt 0:00:17]} Kd5 {[%emt 0:00:07]} 35. Nc7+ {[%emt 0:00:05]} Kc6 {[%emt 0:00:02]} 36. Rxa7 {[%emt 0:00:10]} Kb6 {[%emt 0:00:04]} 37. Ra4 {[%emt 0:00:03]} Bd3 {[%emt 0:00:17]} 38. Nd5+ {[%emt 0:00:07]} Kb5 {[%emt 0:00:03]} 39. Nc3+ {[%emt 0:00:03]} Kc5 {[%emt 0:00:02]} 40. Kd2 {[%emt 0:00:08]} Kd6 {[%emt 0:00:16]} 41. Rd4+ {[%emt 0:00:08]} Kc5 {[%emt 0:00:00]} 42. Rxd3 {[%emt 0:00:03]} e1=Q+ {[%emt 0:00:03]} 43. Kxe1 {[%emt 0:00:03]} Kc4 {[%emt 0:00:06]} 44. Rf3 {[%emt 0:00:02]} h5 {[%emt 0:00:02]} 45. Rxf5 {[%emt 0:00:03]} h4 {[%emt 0:00:01]} 46. g4 {[%emt 0:00:08]} hxg3 {[%emt 0:00:02]} 47. hxg3 {[%emt 0:00:02]} Kb3 {[%emt 0:00:01]} 48. g4 {[%emt 0:00:03]} Kxb2 {[%emt 0:00:00]} 49. g5 {[%emt 0:00:02]} Kxc3 {[%emt 0:00:01]} 50. g6 {[%emt 0:00:01]} Kd4 {[%emt 0:00:01]} 51. g7 {[%emt 0:00:02]} Ke4 {[%emt 0:00:01]} 52. Rf8 {[%emt 0:00:01]} Ke5 {[%emt 0:00:01]} 53. g8=Q {[%emt 0:00:06]} Ke4 {[%emt 0:00:01]} 54. Qe6+ {[%emt 0:00:03]} Kd4 {[%emt 0:00:01]} 55. Rd8+ Kc5 56. Qc8+ {[%emt 0:00:03]} Kb6 {[%emt 0:00:00]} 57. Rd6+ {[%emt 0:00:02]} Kb5 {[%emt 0:00:01]} 58. Qc6+ {[%emt 0:00:03]} Kb4 {[%emt 0:00:00]} 59. Rd4+ Kb3 60. Qc4+ {[%emt 0:00:04]} Kb2 {[%emt 0:00:01]} 61. Rd2+ {[%emt 0:00:02]} Kb1 {[%emt 0:00:03]} 62. Qa2+ {[%emt 0:00:01]} Kc1 {[%emt 0:00:01]} 63. Qa1# {[%emt 0:00:02]} 1-0